fUSD/lending_fUSD_20260505
["ID","MTS","AMOUNT","RATE_DAILY","PERIOD"]
[421619345,1777978232000,-150.0,0.00033237,7]
[421619344,1777978232000,-150.0,0.00033237,7]
[421619347,1777978232000,-727.92,0.00033251,2]
[421619352,1777978232000,-927.0,0.000335,5]
[421619348,1777978232000,-350.82,0.00033264,60]
[421619349,1777978232000,-181.0,0.00033265,30]
[421619353,1777978232000,-166.97,0.00033627,2]
[421619356,1777978232000,-979.26657041,0.000339,120]
[421619354,1777978232000,-150.0,0.0003382,7]
[421619351,1777978232000,-1000.0,0.00033481,2]
[421619350,1777978232000,-316.8,0.00033424,120]
[421619391,1777978238000,-500.0,0.00034395,7]
[421619400,1777978238000,-500.0,0.00034395,7]
[421619399,1777978238000,-186.54518951,0.00034395,7]
[421619410,1777978238000,-500.0,0.00034395,7]
[421619398,1777978238000,-500.0,0.00034395,7]
[421619413,1777978238000,-500.0,0.00034395,7]
[421619415,1777978238000,-500.0,0.00034395,7]
[421619434,1777978238000,-386.62538112,0.00034395,7]
[421619402,1777978238000,-500.0,0.00034395,7]
[421619406,1777978238000,-500.0,0.00034395,7]
[421619404,1777978238000,-500.0,0.00034395,7]
[421619419,1777978238000,-500.0,0.00034395,7]
[421619432,1777978238000,-565.52608092,0.00034395,7]
[421619438,1777978238000,-500.0,0.00034395,7]
[421619397,1777978238000,-500.0,0.00034395,7]
[421619417,1777978238000,-500.0,0.00034395,7]
[421619390,1777978238000,-500.0,0.00034395,7]
[421619380,1777978238000,-298.49996826,0.0003439,2]
[421619386,1777978238000,-500.0,0.00034395,7]
[421619436,1777978238000,-500.0,0.00034395,7]
[421619377,1777978238000,-206.65,0.00024658,2]
[421619378,1777978238000,-150.74631745,0.0003435,2]
[421619379,1777978238000,-376303.81509281,0.0003435,2]
[421619381,1777978238000,-500.0,0.00034395,7]
[421619384,1777978238000,-500.0,0.00034395,7]
[421619382,1777978238000,-500.0,0.00034395,7]
[421619389,1777978238000,-500.0,0.00034395,7]
[421619383,1777978238000,-500.0,0.00034395,7]
[421619394,1777978238000,-500.0,0.00034395,7]
[421619388,1777978238000,-500.0,0.00034395,7]
[421619392,1777978238000,-500.0,0.00034395,7]
[421619396,1777978238000,-500.0,0.00034395,7]
[421619393,1777978238000,-500.0,0.00034395,7]
[421619387,1777978238000,-500.0,0.00034395,7]
[421619395,1777978238000,-559.36038325,0.00034395,7]
[421619385,1777978238000,-500.0,0.00034395,7]
[421619426,1777978238000,-500.0,0.00034395,7]
[421619408,1777978238000,-381.225,0.00034395,7]
[421619428,1777978238000,-500.0,0.00034395,7]
[421619485,1777978238000,-168.0,0.00034396,5]
[421619479,1777978238000,-500.0,0.00034395,7]
[421619477,1777978238000,-500.0,0.00034395,7]
[421619487,1777978238000,-168.0,0.00034396,5]
[421619475,1777978238000,-500.0,0.00034395,7]
[421619490,1777978238000,-169.99787233,0.00034396,5]
[421619492,1777978238000,-500.0,0.00034399,7]
[421619472,1777978238000,-500.0,0.00034395,7]
[421619494,1777978238000,-169.0369975,0.00034399,7]
[421619501,1777978238000,-500.0,0.00034399,7]
[421619503,1777978238000,-327.05554126,0.00034399,7]
[421619507,1777978238000,-500.0,0.00034399,7]
[421619513,1777978238000,-7766.62552057,0.000344,4]
[421619511,1777978238000,-500.0,0.00034399,7]
[421619505,1777978238000,-500.0,0.00034399,7]
[421619430,1777978238000,-500.0,0.00034395,7]
[421619498,1777978238000,-586.65836638,0.00034399,7]
[421619483,1777978238000,-500.0,0.00034395,7]
[421619496,1777978238000,-500.0,0.00034399,7]
[421619470,1777978238000,-500.0,0.00034395,7]
[421619421,1777978238000,-500.0,0.00034395,7]
[421619481,1777978238000,-500.0,0.00034395,7]
[421619440,1777978238000,-500.0,0.00034395,7]
[421619423,1777978238000,-500.0,0.00034395,7]
[421619443,1777978238000,-500.0,0.00034395,7]
[421619447,1777978238000,-500.0,0.00034395,7]
[421619458,1777978238000,-500.0,0.00034395,7]
[421619463,1777978238000,-500.0,0.00034395,7]
[421619445,1777978238000,-500.0,0.00034395,7]
[421619460,1777978238000,-500.0,0.00034395,7]
[421619467,1777978238000,-500.0,0.00034395,7]
[421619456,1777978238000,-500.0,0.00034395,7]
[421619449,1777978238000,-500.0,0.00034395,7]
[421619453,1777978238000,-500.0,0.00034395,7]
[421619509,1777978238000,-402.25310818,0.00034399,7]
[421619465,1777978238000,-500.0,0.00034395,7]
[421619452,1777978238000,-500.0,0.00034395,7]
[421619468,1777978238000,-500.0,0.00034395,7]
[421619582,1777978239000,-181.0,0.00035265,30]
[421619598,1777978239000,-590.28454303,0.00036066,2]
[421619596,1777978239000,-3709.5101251,0.00036065,2]
[421619590,1777978239000,-150.0,0.00035725,2]
[421619567,1777978239000,-150.0,0.00034986,7]
[421619586,1777978239000,-590.28454303,0.00035477,2]
[421619569,1777978239000,-150.0,0.00034986,7]
[421619592,1777978239000,-979.26657041,0.00036,120]
[421619588,1777978239000,-150.0,0.00035725,2]
[421619608,1777978239000,-590.28454303,0.00036655,2]
[421619614,1777978239000,-590.28454303,0.00037243,2]
[421619600,1777978239000,-181.0,0.00036265,30]
[421619610,1777978239000,-3463.8216281,0.000367,2]
[421619602,1777978239000,-210.89,0.000363,30]
[421619604,1777978239000,-2000.0,0.00036311,2]
[421619606,1777978239000,-3709.5101251,0.00036654,2]
[421619612,1777978239000,-3709.5101251,0.00037242,2]
[421619617,1777978239000,-181.0,0.00037265,30]
[421619619,1777978239000,-700.0,0.00037592,4]
[421619571,1777978239000,-150.0,0.00034986,30]
[421619594,1777978239000,-9041.43,0.00036,7]
[421619584,1777978239000,-3709.5101251,0.00035476,2]
[421619533,1777978239000,-210.89,0.000344,30]
[421619575,1777978239000,-979.26657041,0.00035,120]
[421619517,1777978239000,-2164046.74988919,0.000344,2]
[421619515,1777978239000,-200.0,0.000344,30]
[421619531,1777978239000,-102630.81141081,0.000344,2]
[421619535,1777978239000,-9041.43,0.000344,7]
[421619537,1777978239000,-150.0,0.00034403,7]
[421619549,1777978239000,-165.7905639,0.00034825,2]
[421619551,1777978239000,-316.8,0.0003486,120]
[421619553,1777978239000,-1745.043,0.00034874,40]
[421619539,1777978239000,-636.98,0.00034419,2]
[421619555,1777978239000,-182.493,0.00034874,40]
[421619547,1777978239000,-150.51,0.00034724,2]
[421619543,1777978239000,-155.84321884,0.000345,7]
[421619545,1777978239000,-31825.29,0.00034545,2]
[421619557,1777978239000,-3709.5101251,0.00034887,2]
[421619541,1777978239000,-10302.0224976,0.000345,120]
[421619559,1777978239000,-590.28454303,0.00034889,2]
[421619561,1777978239000,-152.39220261,0.00034986,7]
[421619563,1777978239000,-150.0,0.00034986,7]
[421619573,1777978239000,-48516.14150271,0.00035,30]
[421619580,1777978239000,-698.68,0.00035,7]
[421619565,1777978239000,-218.53028948,0.00034986,7]
[421619578,1777978239000,-1558.28,0.00035,14]
[421619625,1777978239000,-1558.28,0.000378,14]
[421619621,1777978239000,-154.01481834,0.00037627,16]
[421619626,1777978239000,-698.68,0.000378,7]
[421619667,1777978239000,-2000.0,0.0003807,97]
[421619673,1777978239000,-12086.71869084,0.0003812,2]
[421619665,1777978239000,-2000.0,0.0003807,97]
[421619661,1777978239000,-164.99,0.00038034,30]
[421619677,1777978239000,-500.0,0.00038229,7]
[421619681,1777978239000,-500.0,0.00038229,7]
[421619683,1777978239000,-300.0,0.00038261,2]
[421619685,1777978239000,-300.0,0.00038261,2]
[421619687,1777978239000,-223.7708,0.00038281,2]
[421619689,1777978239000,-387.29507479,0.00038329,120]
[421619691,1777978239000,-395.85978971,0.00038331,2]
[421619693,1777978239000,-190.87817784,0.00038359,7]
[421619700,1777978239000,-500.0,0.00038373,5]
[421619698,1777978239000,-500.0,0.00038373,5]
[421619695,1777978239000,-834.0,0.0003837,5]
[421619706,1777978239000,-237803.54206586,0.00038395,2]
[421619702,1777978239000,-500.0,0.00038373,5]
[421619704,1777978239000,-169.33728848,0.00038394,120]
[421619623,1777978239000,-151.0,0.00037726,14]
[421619709,1777978239000,-1086.8797393,0.00038395,2]
[421619714,1777978239000,-77777.0,0.00038395,2]
[421619671,1777978239000,-210.89,0.000381,30]
[421619679,1777978239000,-500.0,0.00038229,7]
[421619711,1777978239000,-324.93684459,0.00038395,2]
[421619675,1777978239000,-200.0,0.00038192,10]
[421619627,1777978239000,-500.0,0.000378,2]
[421619631,1777978239000,-1577.746062,0.00037829,2]
[421619629,1777978239000,-38181.7011577,0.00037829,2]
[421619628,1777978239000,-203097.58510423,0.00037829,2]
[421619633,1777978239000,-1016.874873,0.00037829,7]
[421619630,1777978239000,-1234.43778,0.00037829,2]
[421619634,1777978239000,-182.415737,0.00037829,7]
[421619669,1777978239000,-2000.0,0.0003807,97]
[421619635,1777978239000,-1016.874873,0.00037829,7]
[421619637,1777978239000,-182.415737,0.00037829,7]
[421619638,1777978239000,-1016.874873,0.00037829,7]
[421619641,1777978239000,-182.415737,0.00037829,7]
[421619663,1777978239000,-2000.0,0.0003807,97]
[421619643,1777978239000,-1016.874873,0.00037829,7]
[421619659,1777978239000,-2911.87623016,0.00038,120]
[421619655,1777978239000,-590.28454303,0.00037832,2]
[421619651,1777978239000,-151.0,0.00037829,7]
[421619649,1777978239000,-151.0,0.00037829,7]
[421619657,1777978239000,-9041.43,0.000379,7]
[421619647,1777978239000,-151.691781,0.00037829,7]
[421619645,1777978239000,-182.415737,0.00037829,7]
[421619653,1777978239000,-3709.5101251,0.00037831,2]
[421619859,1777978240000,-483.65945066,0.00038395,2]
[421619853,1777978240000,-779.33969408,0.00038395,2]
[421619851,1777978240000,-371.82008414,0.00038395,2]
[421619813,1777978240000,-1587.96988132,0.00038395,2]
[421619822,1777978240000,-1655.35490122,0.00038395,2]
[421619816,1777978240000,-1208.62553117,0.00038395,2]
[421619896,1777978241000,-134.50121702,0.00038395,2]
[421619894,1777978241000,-820.02808436,0.00038395,2]
[421619898,1777978241000,-750.0,0.00038395,2]
[421619892,1777978241000,-258.117,0.00038395,2]
[421620002,1777978246000,-255.082921,0.00038395,30]
[421620013,1777978246000,-1603.70259909,0.00038472,5]
[421620003,1777978246000,-3709.5101251,0.0003842,2]
[421619996,1777978246000,-182.415737,0.00038395,30]
[421619995,1777978246000,-1016.874873,0.00038395,30]
[421619994,1777978246000,-182.415737,0.00038395,30]
[421619998,1777978246000,-182.415737,0.00038395,30]
[421619997,1777978246000,-1016.874873,0.00038395,30]
[421619999,1777978246000,-1016.874873,0.00038395,30]
[421619993,1777978246000,-1016.874873,0.00038395,30]
[421619992,1777978246000,-151.0,0.00038395,28]
[421620001,1777978246000,-151.0,0.00038395,30]
[421619991,1777978246000,-151.0,0.00038395,7]
[421619989,1777978246000,-10729.1373106,0.00038395,2]
[421619990,1777978246000,-151.0,0.00038395,7]
[421619986,1777978246000,-201.937085,0.00038395,30]
[421619981,1777978246000,-4911.24077648,0.00038395,2]
[421619987,1777978246000,-201.937085,0.00038395,30]
[421619988,1777978246000,-201.937085,0.00038395,30]
[421619977,1777978246000,-316.8,0.00036057,120]
[421619985,1777978246000,-201.937085,0.00038395,30]
[421619983,1777978246000,-170.4290294,0.00038395,2]
[421619982,1777978246000,-10739.9352593,0.00038395,2]
[421619984,1777978246000,-6945.850186,0.00038395,2]
[421619979,1777978246000,-316.8,0.00037372,120]
[421619980,1777978246000,-316.8,0.00038029,120]
[421619978,1777978246000,-316.8,0.00036714,120]
[421619976,1777978246000,-316.8,0.00035399,120]
[421620004,1777978246000,-590.28454303,0.00038421,2]
[421620000,1777978246000,-182.415737,0.00038395,30]
[421620018,1777978246000,-1724.57206028,0.00038472,5]
[421620057,1777978246000,-928.08249191,0.00038514,2]
[421620008,1777978246000,-1438.09495884,0.00038472,5]
[421620016,1777978246000,-1663.03959526,0.00038472,5]
[421620070,1777978246000,-333.02,0.00038695,7]
[421620067,1777978246000,-500.0,0.00038695,7]
[421620065,1777978246000,-169.33728848,0.00038668,120]
[421620063,1777978246000,-150.0,0.00038614,2]
[421620061,1777978246000,-252.87235326,0.00038614,2]
[421620052,1777978246000,-200.0,0.000385,2]
[421620054,1777978246000,-727.36247781,0.00038503,2]
[421620050,1777978246000,-524.4,0.000385,2]
[421620072,1777978246000,-1558.28,0.000387,14]
[421620047,1777978246000,-800.0,0.000385,5]
[421620045,1777978246000,-150.0,0.00038499,120]
[421620041,1777978246000,-151.0,0.00038497,14]
[421620043,1777978246000,-151.0,0.00038497,14]
[421620059,1777978246000,-316.8,0.00038558,120]
[421620028,1777978246000,-500.0,0.00038483,5]
[421620024,1777978246000,-1923.16973115,0.00038472,5]
[421620009,1777978246000,-1491.30447232,0.00038472,5]
[421620005,1777978246000,-2000.0,0.00038459,102]
[421620007,1777978246000,-1386.78395259,0.00038472,5]
[421620011,1777978246000,-1546.48273779,0.00038472,5]
[421620020,1777978246000,-1788.38122651,0.00038472,5]
[421620006,1777978246000,-2000.0,0.00038459,102]
[421620030,1777978246000,-202.40725895,0.00038483,2]
[421620035,1777978246000,-500.0,0.00038483,5]
[421620022,1777978246000,-1854.55133189,0.00038472,5]
[421620037,1777978246000,-500.61824174,0.00038483,5]
[421620026,1777978246000,-343.41951008,0.0003848,7]
[421620039,1777978246000,-151.0,0.00038497,14]
[421620033,1777978246000,-500.0,0.00038483,5]
[421620120,1777978247000,-1000.0,0.00039031,5]
[421620135,1777978247000,-928.0,0.00039231,2]
[421620108,1777978247000,-590.28454303,0.00039009,2]
[421620121,1777978247000,-482.50122156,0.0003915,5]
[421620123,1777978247000,-169.33728848,0.00039216,120]
[421620125,1777978247000,-925.0,0.00039231,2]
[421620137,1777978247000,-419.064,0.00039231,2]
[421620139,1777978247000,-6041.0,0.00039231,2]
[421620145,1777978247000,-350.0,0.00039426,4]
[421620143,1777978247000,-350.0,0.00039349,4]
[421620131,1777978247000,-637.515,0.00039231,2]
[421620141,1777978247000,-351.98003782,0.000393,21]
[421620129,1777978247000,-1364.169,0.00039231,2]
[421620133,1777978247000,-1267.0,0.00039231,2]
[421620147,1777978247000,-169.33728848,0.0003949,120]
[421620149,1777978247000,-1360.2270734,0.00039527,2]
[421620118,1777978247000,-501.27995319,0.00039031,5]
[421620127,1777978247000,-3535.0,0.00039231,2]
[421620106,1777978247000,-3709.5101251,0.00039009,2]
[421620081,1777978247000,-9041.43,0.000389,7]
[421620102,1777978247000,-1000.0,0.00038999,2]
[421620074,1777978247000,-698.68,0.000387,30]
[421620076,1777978247000,-207.73375662,0.00038855,120]
[421620078,1777978247000,-1000.0,0.000389,2]
[421620083,1777978247000,-310.0,0.000389,2]
[421620151,1777978247000,-150.0,0.00039537,2]
[421620085,1777978247000,-505.84454996,0.00038921,5]
[421620089,1777978247000,-563.92412643,0.00038921,5]
[421620087,1777978247000,-847.39126432,0.00038921,5]
[421620092,1777978247000,-1757.34850502,0.00038922,2]
[421620094,1777978247000,-169.33728848,0.00038942,120]
[421620096,1777978247000,-185.06959613,0.00038961,2]
[421620110,1777978247000,-284.0,0.00039026,30]
[421620098,1777978247000,-1000.0,0.00038999,2]
[421620114,1777978247000,-588.0,0.00039026,30]
[421620104,1777978247000,-210.89,0.00039,30]
[421620112,1777978247000,-926.0,0.00039026,30]
[421620100,1777978247000,-1000.0,0.00038999,2]
[421620116,1777978247000,-1007.24380724,0.00039031,5]
[421620155,1777978247000,-509.99493695,0.00039579,5]
[421620168,1777978247000,-698.68,0.000396,30]
[421620160,1777978247000,-590.28454303,0.00039598,2]
[421620200,1777978247000,-151.0,0.00039692,7]
[421620193,1777978247000,-155.42950694,0.00039687,14]
[421620201,1777978247000,-151.0,0.00039692,28]
[421620213,1777978247000,-151.0,0.00039692,30]
[421620205,1777978247000,-182.415737,0.00039692,30]
[421620209,1777978247000,-1016.874873,0.00039692,30]
[421620202,1777978247000,-1016.874873,0.00039692,30]
[421620156,1777978247000,-5000.0,0.00039591,2]
[421620191,1777978247000,-298.49996826,0.00039682,2]
[421620207,1777978247000,-182.415737,0.00039692,30]
[421620206,1777978247000,-1016.874873,0.00039692,30]
[421620211,1777978247000,-182.415737,0.00039692,30]
[421620217,1777978247000,-9044.533306,0.00039692,30]
[421620215,1777978247000,-44148.20034591,0.00039692,30]
[421620220,1777978247000,-11396.688296,0.00039692,30]
[421620225,1777978247000,-585.17472321,0.00039692,30]
[421620223,1777978247000,-316.8,0.00039344,120]
[421620228,1777978247000,-1615.40906597,0.00039692,30]
[421620204,1777978247000,-1016.874873,0.00039692,30]
[421620199,1777978247000,-151.0,0.00039692,7]
[421620203,1777978247000,-182.415737,0.00039692,30]
[421620197,1777978247000,-201.937085,0.00039692,30]
[421620153,1777978247000,-265.836,0.00039537,2]
[421620162,1777978247000,-2000.0,0.000396,2]
[421620166,1777978247000,-1558.28,0.000396,14]
[421620164,1777978247000,-160.0,0.000396,72]
[421620170,1777978247000,-20000.0,0.000396,2]
[421620174,1777978247000,-400.66337621,0.00039673,5]
[421620178,1777978247000,-500.0,0.00039673,5]
[421620158,1777978247000,-3709.5101251,0.00039598,2]
[421620176,1777978247000,-500.0,0.00039673,5]
[421620184,1777978247000,-500.0,0.00039673,5]
[421620182,1777978247000,-500.0,0.00039673,5]
[421620186,1777978247000,-500.0,0.00039673,5]
[421620180,1777978247000,-500.0,0.00039673,5]
[421620189,1777978247000,-500.0,0.00039673,5]
[421620196,1777978247000,-201.937085,0.00039692,30]
[421620194,1777978247000,-201.937085,0.00039692,30]
[421620172,1777978247000,-151.0,0.00039668,14]
[421620198,1777978247000,-201.937085,0.00039692,30]
[421620419,1777979151000,-162.95,0.00015556,2]
[421620420,1777979151000,-11.25333148,0.000175,2]
[421620421,1777979208000,-151.69666852,0.000175,2]
[421620423,1777979208000,-174.17728294,0.0002,2]
[421620422,1777979208000,-162.95,0.00019445,2]
[421620424,1777979232000,-26.82271706,0.0002,2]
[421620425,1777979232000,-201.0,0.00021,2]
[421620427,1777979232000,-162.95,0.00021389,2]
[421620426,1777979232000,-508.0,0.00021,2]
[421620432,1777979232000,-13.84465702,0.00024534,2]
[421620431,1777979232000,-201.0,0.00024,2]
[421620430,1777979232000,-162.95,0.00023334,2]
[421620429,1777979232000,-201.0,0.00023,2]
[421620428,1777979232000,-201.0,0.00022,2]
[421620433,1777979250000,-158.9264164,0.00016,2]
[421620434,1777979250000,-118.01946928,0.00017596,2]
[421620439,1777979349000,-190.76,0.00024658,2]
[421620442,1777979349000,-210.46,0.00024658,2]
[421620438,1777979349000,-241.28038308,0.00017596,2]
[421620437,1777979349000,-32.98053072,0.00017596,2]
[421620441,1777979349000,-274.0,0.00024658,2]
[421620440,1777979349000,-150.0,0.00024658,2]
[421620444,1777979349000,-207.52,0.00024658,2]
[421620446,1777979349000,-161.84,0.00025243,2]
[421620448,1777979349000,-764.45804774,0.00025347,2]
[421620447,1777979349000,-162.95,0.00025278,2]
[421620445,1777979349000,-212.0,0.00025,2]
[421620443,1777979349000,-208.18,0.00024658,2]
[421620449,1777979354000,-207.34,0.00024658,2]
[421620451,1777979354000,-1200.0,0.00025522,2]
[421620453,1777979354000,-17903.87,0.00025523,2]
[421620450,1777979354000,-290.23195226,0.00025347,2]
[421620455,1777979354000,-705.0,0.0002602,2]
[421620454,1777979354000,-150.0,0.0002589,2]
[421620456,1777979354000,-18175.16380121,0.00026021,2]
[421620452,1777979354000,-300.0,0.00025522,2]
[421620460,1777979358000,-27.58902121,0.000269,2]
[421620459,1777979358000,-156.48,0.00026647,2]
[421620457,1777979358000,-34645.76619879,0.00026021,2]
[421620458,1777979358000,-5000.0,0.00026636,2]
[421620466,1777979363000,-500.0,0.00026999,2]
[421620462,1777979363000,-500.0,0.00026999,2]
[421620463,1777979363000,-500.0,0.00026999,2]
[421620461,1777979363000,-233.11136435,0.000269,2]
[421620465,1777979363000,-500.0,0.00026999,2]
[421620464,1777979363000,-500.0,0.00026999,2]
[421620467,1777979363000,-500.0,0.00026999,2]
[421620469,1777979363000,-210.60799565,0.00026999,2]
[421620471,1777979363000,-500.0,0.00026999,2]
[421620468,1777979363000,-188.91881496,0.00026999,2]
[421620470,1777979363000,-500.0,0.00026999,2]
[421620472,1777979363000,-500.0,0.00026999,2]
[421620473,1777979363000,-500.0,0.00026999,2]
[421620474,1777979363000,-382.45211413,0.00026999,2]
[421620490,1777979367000,-500.0,0.00026999,2]
[421620489,1777979367000,-500.0,0.00026999,2]
[421620488,1777979367000,-500.0,0.00026999,2]
[421620487,1777979367000,-500.0,0.00026999,2]
[421620485,1777979367000,-500.0,0.00026999,2]
[421620486,1777979367000,-500.0,0.00026999,2]
[421620483,1777979367000,-500.0,0.00026999,2]
[421620482,1777979367000,-500.0,0.00026999,2]
[421620479,1777979367000,-500.0,0.00026999,2]
[421620484,1777979367000,-500.0,0.00026999,2]
[421620492,1777979367000,-500.0,0.00026999,2]
[421620477,1777979367000,-181.08347237,0.00026999,2]
[421620480,1777979367000,-500.0,0.00026999,2]
[421620478,1777979367000,-500.0,0.00026999,2]
[421620476,1777979367000,-117.54788587,0.00026999,2]
[421620475,1777979367000,-151.704335,0.00026765,2]
[421620481,1777979367000,-500.0,0.00026999,2]
[421620491,1777979367000,-500.0,0.00026999,2]
[421620502,1777979367000,-500.0,0.00026999,2]
[421620493,1777979367000,-500.0,0.00026999,2]
[421620511,1777979367000,-500.0,0.00026999,2]
[421620510,1777979367000,-500.0,0.00026999,2]
[421620507,1777979367000,-500.0,0.00026999,2]
[421620509,1777979367000,-500.0,0.00026999,2]
[421620494,1777979367000,-500.0,0.00026999,2]
[421620506,1777979367000,-500.0,0.00026999,2]
[421620503,1777979367000,-500.0,0.00026999,2]
[421620505,1777979367000,-500.0,0.00026999,2]
[421620508,1777979367000,-500.0,0.00026999,2]
[421620504,1777979367000,-500.0,0.00026999,2]
[421620500,1777979367000,-500.0,0.00026999,2]
[421620501,1777979367000,-500.0,0.00026999,2]
[421620499,1777979367000,-438.66253811,0.00026999,2]
[421620498,1777979367000,-500.0,0.00026999,2]
[421620497,1777979367000,-500.0,0.00026999,2]
[421620496,1777979367000,-500.0,0.00026999,2]
[421620495,1777979367000,-500.0,0.00026999,2]
[421620519,1777979368000,-500.0,0.00026999,2]
[421620518,1777979368000,-500.0,0.00026999,2]
[421620517,1777979368000,-500.0,0.00026999,2]
[421620516,1777979368000,-500.0,0.00026999,2]
[421620514,1777979368000,-500.0,0.00026999,2]
[421620512,1777979368000,-500.0,0.00026999,2]
[421620520,1777979368000,-500.0,0.00026999,2]
[421620513,1777979368000,-500.0,0.00026999,2]
[421620515,1777979368000,-500.0,0.00026999,2]
[421620521,1777979368000,-500.0,0.00026999,2]
[421620530,1777979368000,-500.0,0.00026999,2]
[421620525,1777979368000,-500.0,0.00026999,2]
[421620523,1777979368000,-500.0,0.00026999,2]
[421620526,1777979368000,-500.0,0.00026999,2]
[421620527,1777979368000,-450.0,0.00026999,2]
[421620524,1777979368000,-500.0,0.00026999,2]
[421620528,1777979368000,-500.0,0.00026999,2]
[421620531,1777979368000,-500.0,0.00026999,2]
[421620529,1777979368000,-500.0,0.00026999,2]
[421620532,1777979368000,-299.9,0.00026999,2]
[421620533,1777979368000,-11490.86983308,0.00027,20]
[421620522,1777979368000,-500.0,0.00026999,2]
[421620534,1777979369000,-8146.808502,0.00027,20]
[421620535,1777979374000,-4389.68504158,0.00027,20]
[421620576,1777979432000,-201.0,0.00034266,30]
[421620571,1777979432000,-5000.0,0.00033287,60]
[421620581,1777979432000,-1119.0,0.000349,5]
[421620575,1777979432000,-5000.0,0.00034265,60]
[421620574,1777979432000,-526.0,0.00034116,2]
[421620579,1777979432000,-1396.034,0.00034874,40]
[421620577,1777979432000,-2000.0,0.00034795,2]
[421620578,1777979432000,-5000.0,0.00034873,60]
[421620573,1777979432000,-5000.0,0.00034115,60]
[421620580,1777979432000,-182.494,0.00034874,40]
[421620590,1777979432000,-150.0,0.00035877,7]
[421620583,1777979432000,-750.0,0.00035,120]
[421620584,1777979432000,-4061.69,0.00035099,60]
[421620585,1777979432000,-12003.28,0.0003515,30]
[421620586,1777979432000,-201.0,0.00035266,30]
[421620572,1777979432000,-500.0,0.00033288,2]
[421620588,1777979432000,-150.0,0.00035877,30]
[421620587,1777979432000,-167.84,0.00035399,30]
[421620592,1777979432000,-150.0,0.00035877,7]
[421620594,1777979432000,-150.0,0.00035877,7]
[421620595,1777979432000,-150.0,0.00035877,7]
[421620582,1777979432000,-5000.0,0.00034999,60]
[421620570,1777979432000,-201.0,0.00033266,30]
[421620556,1777979432000,-156.48,0.00028424,2]
[421620568,1777979432000,-201.0,0.00032266,30]
[421620546,1777979432000,-300.0,0.00026999,2]
[421620547,1777979432000,-453.0,0.00026999,2]
[421620552,1777979432000,-150.0,0.00027185,2]
[421620551,1777979432000,-14689.13138475,0.00027114,2]
[421620548,1777979432000,-346972.63662334,0.00027,20]
[421620549,1777979432000,-1049.0,0.00027,2]
[421620550,1777979432000,-218.58,0.00027047,2]
[421620553,1777979432000,-162.95,0.00027223,2]
[421620554,1777979432000,-10007.45,0.00027511,2]
[421620557,1777979432000,-509.0,0.000288,2]
[421620569,1777979432000,-5000.0,0.00033265,60]
[421620555,1777979432000,-156.48,0.00027535,2]
[421620559,1777979432000,-1375.68,0.00029009,2]
[421620561,1777979432000,-162.95,0.00029167,2]
[421620596,1777979432000,-150.0,0.00035877,7]
[421620560,1777979432000,-10359.5,0.00029009,2]
[421620565,1777979432000,-201.0,0.00031266,30]
[421620562,1777979432000,-420.0,0.00029189,2]
[421620563,1777979432000,-156.48,0.00029312,2]
[421620564,1777979432000,-162.95,0.00031112,2]
[421620566,1777979432000,-200.0,0.0003133,2]